[Event "November 21 Early 2023"]
[Site "https://www.chess.com"]
[Date "2023.11.21"]
[Round "1"]
[White "Taher, Yoseph Theolifus"]
[Black "Reprintsev, Alexander"]
[Result "1-0"]
[Board "45"]
[TimeControl "180+1"]
[WhiteFideId "7105347"]
[BlackFideId "14100541"]
[WhiteElo "2352"]
[BlackElo "2229"]
[WhiteTeam "INA"]
[BlackTeam "UKR"]
[WhiteClock "0:02:26"]
[BlackClock "0:01:07"]

1. d4 {[%clk 0:03:00]}  d5 {[%clk 0:02:57]} 2. Nc3 {[%clk 0:03:00]}  Nf6 {[%clk 0:02:56]} 3. Bf4 {[%clk 0:03:00]}  a6 {[%clk 0:02:55]} 4. e3 {[%clk 0:03:00]}  e6 {[%clk 0:02:53]} 5. Nf3 {[%clk 0:03:01]}  c5 {[%clk 0:02:46]} 6. Bd3 {[%clk 0:03:00]}  c4 {[%clk 0:02:40]} 7. Be2 {[%clk 0:03:00]}  b5 {[%clk 0:02:40]} 8. O-O {[%clk 0:02:59]}  b4 {[%clk 0:02:40]} 9. Nb1 {[%clk 0:02:59]}  Nbd7 {[%clk 0:02:40]} 10. a3 {[%clk 0:02:59]}  bxa3 {[%clk 0:02:36]} 11. Nxa3 {[%clk 0:03:00]}  Ne4 {[%clk 0:02:29]} 12. Nb5 {[%clk 0:02:59]}  g5 {[%clk 0:02:13]} 13. Nc7+ {[%clk 0:02:50]}  Ke7 {[%clk 0:02:13]} 14. Nxg5 {[%clk 0:02:50]}  Nxg5 {[%clk 0:02:10]} 15. Bxg5+ {[%clk 0:02:50]}  f6 {[%clk 0:02:10]} 16. Bf4 {[%clk 0:02:43]}  Rb8 {[%clk 0:01:51]} 17. b3 {[%clk 0:02:34]}  cxb3 {[%clk 0:01:28]} 18. cxb3 {[%clk 0:02:35]}  Rb6 {[%clk 0:01:20]} 19. Qc1 {[%clk 0:02:31]}  Kf7 {[%clk 0:01:17]} 20. Bh5+ {[%clk 0:02:27]}  Kg7 {[%clk 0:01:17]} 21. Ne8+ {[%clk 0:02:26]}  Kg8 {[%clk 0:01:07]} 22. Bc7 {[%clk 0:02:26]} 1-0

[Event "November 21 Early 2023"]
[Site "https://www.chess.com"]
[Date "2023.11.21"]
[Round "1"]
[White "HeroWilczek"]
[Black "Sychev, Klementy"]
[Result "0-1"]
[Board "46"]
[TimeControl "180+1"]
[BlackFideId "4114060"]
[WhiteElo "2486"]
[BlackElo "2583"]
[BlackTeam "FID"]
[WhiteClock "0:01:04"]
[BlackClock "0:01:07"]

1. e4 {[%clk 0:02:58]}  e5 {[%clk 0:03:00]} 2. Nf3 {[%clk 0:02:58]}  Nc6 {[%clk 0:03:00]} 3. Bc4 {[%clk 0:02:58]}  Nf6 {[%clk 0:03:00]} 4. d3 {[%clk 0:02:58]}  Bc5 {[%clk 0:02:59]} 5. O-O {[%clk 0:02:58]}  O-O {[%clk 0:02:58]} 6. c3 {[%clk 0:02:53]}  d5 {[%clk 0:02:58]} 7. exd5 {[%clk 0:02:54]}  Nxd5 {[%clk 0:02:59]} 8. Re1 {[%clk 0:02:55]}  Bg4 {[%clk 0:02:59]} 9. Nbd2 {[%clk 0:02:53]}  Nb6 {[%clk 0:02:58]} 10. Bb5 {[%clk 0:02:53]}  Bd6 {[%clk 0:02:57]} 11. h3 {[%clk 0:02:52]}  Bh5 {[%clk 0:02:57]} 12. Nf1 {[%clk 0:02:51]}  f5 {[%clk 0:02:54]} 13. Ng3 {[%clk 0:02:46]}  Bxf3 {[%clk 0:02:53]} 14. Qxf3 {[%clk 0:02:44]}  Qd7 {[%clk 0:02:54]} 15. a4 {[%clk 0:02:41]}  a6 {[%clk 0:02:53]} 16. Bxc6 {[%clk 0:02:39]}  bxc6 {[%clk 0:02:52]} 17. Qe2 {[%clk 0:02:24]}  Rae8 {[%clk 0:02:49]} 18. Bd2 {[%clk 0:02:13]}  Nd5 {[%clk 0:02:44]} 19. c4 {[%clk 0:02:04]}  Nf4 {[%clk 0:02:29]} 20. Qf3 {[%clk 0:01:54]}  Ng6 {[%clk 0:01:57]} 21. Bc3 {[%clk 0:01:49]}  e4 {[%clk 0:01:41]} 22. dxe4 {[%clk 0:01:42]}  fxe4 {[%clk 0:01:42]} 23. Qe3 {[%clk 0:01:38]}  Qf7 {[%clk 0:01:13]} 24. c5 {[%clk 0:01:21]}  Bf4 {[%clk 0:01:11]} 25. Qd4 {[%clk 0:01:18]}  e3 {[%clk 0:01:09]} 26. Rxe3 {[%clk 0:01:07]}  Rxe3 {[%clk 0:01:08]} 27. fxe3 {[%clk 0:01:05]}  Bxg3 {[%clk 0:01:08]} 28. e4 {[%clk 0:01:04]}  Bf2+ {[%clk 0:01:07]} 0-1

[Event "November 21 Early 2023"]
[Site "https://www.chess.com"]
[Date "2023.11.21"]
[Round "1"]
[White "Galaktionov, Artem"]
[Black "Saravana, Krishnan P."]
[Result "1-0"]
[Board "47"]
[TimeControl "180+1"]
[WhiteFideId "24175471"]
[BlackFideId "5018382"]
[WhiteElo "2367"]
[BlackElo "2167"]
[WhiteTeam "RUS"]
[BlackTeam "IND"]
[WhiteClock "0:01:02"]
[BlackClock "0:00:00"]

1. d4 {[%clk 0:02:59]}  d5 {[%clk 0:02:58]} 2. Nf3 {[%clk 0:02:59]}  Nf6 {[%clk 0:02:58]} 3. c4 {[%clk 0:02:59]}  c6 {[%clk 0:02:58]} 4. Qb3 {[%clk 0:02:59]}  dxc4 {[%clk 0:02:57]} 5. Qxc4 {[%clk 0:03:00]}  Bf5 {[%clk 0:02:57]} 6. Nc3 {[%clk 0:02:59]}  e6 {[%clk 0:02:57]} 7. g3 {[%clk 0:02:59]}  Be7 {[%clk 0:02:57]} 8. Bg2 {[%clk 0:02:59]}  Nbd7 {[%clk 0:02:57]} 9. Qb3 {[%clk 0:02:57]}  Qb6 {[%clk 0:02:56]} 10. Nd2 {[%clk 0:02:57]}  h6 {[%clk 0:02:50]} 11. Nc4 {[%clk 0:02:56]}  Qxb3 {[%clk 0:02:49]} 12. axb3 {[%clk 0:02:57]}  Bb4 {[%clk 0:02:20]} 13. Bd2 {[%clk 0:02:53]}  O-O {[%clk 0:02:13]} 14. Na5 {[%clk 0:02:51]}  Bxa5 {[%clk 0:01:52]} 15. Rxa5 {[%clk 0:02:52]}  a6 {[%clk 0:01:52]} 16. e4 {[%clk 0:02:51]}  Bg6 {[%clk 0:01:51]} 17. h3 {[%clk 0:02:50]}  Rfd8 {[%clk 0:01:50]} 18. Be3 {[%clk 0:02:48]}  Ne8 {[%clk 0:01:32]} 19. f4 {[%clk 0:02:39]}  Nd6 {[%clk 0:01:31]} 20. g4 {[%clk 0:02:38]}  f5 {[%clk 0:01:29]} 21. gxf5 {[%clk 0:02:31]}  exf5 {[%clk 0:01:29]} 22. e5 {[%clk 0:02:31]}  Nb5 {[%clk 0:01:26]} 23. Nxb5 {[%clk 0:02:31]}  axb5 {[%clk 0:01:25]} 24. Rxa8 {[%clk 0:02:29]}  Rxa8 {[%clk 0:01:25]} 25. d5 {[%clk 0:02:27]}  cxd5 {[%clk 0:01:19]} 26. Bxd5+ {[%clk 0:02:28]}  Kf8 {[%clk 0:01:05]} 27. Bxb7 {[%clk 0:02:27]}  Ra2 {[%clk 0:01:00]} 28. Kd2 {[%clk 0:02:26]}  Rxb2+ {[%clk 0:00:57]} 29. Kc3 {[%clk 0:02:25]}  Re2 {[%clk 0:00:53]} 30. Bd4 {[%clk 0:02:17]}  Bf7 {[%clk 0:00:48]} 31. Bc6 {[%clk 0:02:14]}  Ke7 {[%clk 0:00:42]} 32. Bxb5 {[%clk 0:02:10]}  Rg2 {[%clk 0:00:42]} 33. Kb4 {[%clk 0:02:00]}  Rd2 {[%clk 0:00:35]} 34. Be3 {[%clk 0:01:53]}  Rb2 {[%clk 0:00:33]} 35. Bc4 {[%clk 0:01:44]}  Bxc4 {[%clk 0:00:26]} 36. Kxc4 {[%clk 0:01:45]}  g5 {[%clk 0:00:26]} 37. fxg5 {[%clk 0:01:37]}  Nxe5+ {[%clk 0:00:20]} 38. Kd5 {[%clk 0:01:37]}  Ng6 {[%clk 0:00:16]} 39. b4 {[%clk 0:01:25]}  hxg5 {[%clk 0:00:14]} 40. Bxg5+ {[%clk 0:01:26]}  Kf7 {[%clk 0:00:14]} 41. Kc5 {[%clk 0:01:23]}  f4 {[%clk 0:00:12]} 42. Rf1 {[%clk 0:01:22]}  Rb3 {[%clk 0:00:13]} 43. Bxf4 {[%clk 0:01:20]}  Rxh3 {[%clk 0:00:10]} 44. Bg5+ {[%clk 0:01:12]}  Kg7 {[%clk 0:00:10]} 45. b5 {[%clk 0:01:10]}  Rh5 {[%clk 0:00:08]} 46. Rf5 {[%clk 0:01:09]}  Kg8 {[%clk 0:00:06]} 47. Rd5 {[%clk 0:01:08]}  Nf8 {[%clk 0:00:03]} 48. Kd6 {[%clk 0:01:06]}  Rh1 {[%clk 0:00:00]} 49. Be7 {[%clk 0:01:02]} 1-0

[Event "November 21 Early 2023"]
[Site "https://www.chess.com"]
[Date "2023.11.21"]
[Round "1"]
[White "Dudzinski, Pawel"]
[Black "Zakhartsov, Vladimir"]
[Result "0-1"]
[Board "48"]
[TimeControl "180+1"]
[WhiteFideId "1117890"]
[BlackFideId "4145097"]
[WhiteElo "2034"]
[BlackElo "2448"]
[WhiteTeam "POL"]
[BlackTeam "RUS"]
[WhiteClock "0:00:13"]
[BlackClock "0:00:22"]

1. e4 {[%clk 0:03:00]}  c6 {[%clk 0:02:59]} 2. d4 {[%clk 0:03:00]}  d5 {[%clk 0:03:00]} 3. exd5 {[%clk 0:03:01]}  cxd5 {[%clk 0:03:01]} 4. Bd3 {[%clk 0:03:01]}  Nc6 {[%clk 0:03:00]} 5. c3 {[%clk 0:03:01]}  g6 {[%clk 0:03:00]} 6. h3 {[%clk 0:02:59]}  Bg7 {[%clk 0:02:55]} 7. Nf3 {[%clk 0:02:59]}  Bf5 {[%clk 0:02:55]} 8. O-O {[%clk 0:02:58]}  Bxd3 {[%clk 0:02:53]} 9. Qxd3 {[%clk 0:02:57]}  e6 {[%clk 0:02:54]} 10. Re1 {[%clk 0:02:52]}  Nge7 {[%clk 0:02:53]} 11. Bg5 {[%clk 0:02:49]}  h6 {[%clk 0:02:53]} 12. Bxe7 {[%clk 0:02:48]}  Qxe7 {[%clk 0:02:47]} 13. Nbd2 {[%clk 0:02:42]}  O-O {[%clk 0:02:46]} 14. Ne5 {[%clk 0:02:42]}  Nxe5 {[%clk 0:02:40]} 15. dxe5 {[%clk 0:02:43]}  Rac8 {[%clk 0:02:40]} 16. f4 {[%clk 0:02:31]}  Rfd8 {[%clk 0:02:34]} 17. Nf3 {[%clk 0:02:29]}  a6 {[%clk 0:02:26]} 18. Rad1 {[%clk 0:02:25]}  b5 {[%clk 0:02:26]} 19. a3 {[%clk 0:02:20]}  Qb7 {[%clk 0:02:23]} 20. g4 {[%clk 0:02:16]}  Kh8 {[%clk 0:01:52]} 21. Nd4 {[%clk 0:02:12]}  Rg8 {[%clk 0:01:50]} 22. Kh1 {[%clk 0:02:07]}  Qe7 {[%clk 0:01:46]} 23. Qg3 {[%clk 0:01:55]}  Bf8 {[%clk 0:01:39]} 24. Qf2 {[%clk 0:01:49]}  Qd7 {[%clk 0:01:29]} 25. Rd3 {[%clk 0:01:44]}  Bc5 {[%clk 0:01:28]} 26. Rf1 {[%clk 0:01:40]}  Qe7 {[%clk 0:01:25]} 27. f5 {[%clk 0:01:30]}  exf5 {[%clk 0:01:20]} 28. gxf5 {[%clk 0:01:29]}  Qxe5 {[%clk 0:01:19]} 29. fxg6 {[%clk 0:01:23]}  Rxg6 {[%clk 0:01:00]} 30. Qxf7 {[%clk 0:00:57]}  Rcg8 {[%clk 0:00:59]} 31. Rdf3 {[%clk 0:00:29]}  Bxd4 {[%clk 0:00:52]} 32. cxd4 {[%clk 0:00:30]}  Qxd4 {[%clk 0:00:49]} 33. R3f2 {[%clk 0:00:21]}  Qe4+ {[%clk 0:00:43]} 34. Qf3 {[%clk 0:00:20]}  Qe5 {[%clk 0:00:24]} 35. Qf4 {[%clk 0:00:19]}  Qg7 {[%clk 0:00:22]} 36. Qf3 {[%clk 0:00:13]} 0-1

[Event "November 21 Early 2023"]
[Site "https://www.chess.com"]
[Date "2023.11.21"]
[Round "1"]
[White "Licznerski, Lukasz"]
[Black "YouShallNotPass001"]
[Result "1-0"]
[Board "53"]
[TimeControl "180+1"]
[WhiteFideId "1179250"]
[WhiteElo "2436"]
[BlackElo "2473"]
[WhiteTeam "POL"]
[WhiteClock "0:00:07"]
[BlackClock "0:00:24"]

1. e4 {[%clk 0:02:20]}  c5 {[%clk 0:02:56]} 2. Nf3 {[%clk 0:02:20]}  g6 {[%clk 0:02:57]} 3. d4 {[%clk 0:02:15]}  cxd4 {[%clk 0:02:57]} 4. Nxd4 {[%clk 0:02:16]}  Bg7 {[%clk 0:02:58]} 5. Nc3 {[%clk 0:02:16]}  Nc6 {[%clk 0:02:58]} 6. Nb3 {[%clk 0:02:16]}  Nf6 {[%clk 0:02:59]} 7. Be2 {[%clk 0:02:16]}  O-O {[%clk 0:02:59]} 8. O-O {[%clk 0:02:17]}  d6 {[%clk 0:03:00]} 9. Re1 {[%clk 0:02:17]}  Be6 {[%clk 0:03:00]} 10. Bf1 {[%clk 0:02:18]}  Rc8 {[%clk 0:03:00]} 11. Nd5 {[%clk 0:02:18]}  Ne5 {[%clk 0:02:57]} 12. c3 {[%clk 0:02:10]}  Nc4 {[%clk 0:02:49]} 13. Bxc4 {[%clk 0:02:05]}  Rxc4 {[%clk 0:02:48]} 14. Bg5 {[%clk 0:02:06]}  Bxd5 {[%clk 0:02:29]} 15. exd5 {[%clk 0:02:07]}  h6 {[%clk 0:02:26]} 16. Qd3 {[%clk 0:02:02]}  b5 {[%clk 0:02:21]} 17. Bxf6 {[%clk 0:01:41]}  Bxf6 {[%clk 0:02:20]} 18. Qe3 {[%clk 0:01:42]}  a5 {[%clk 0:02:12]} 19. Qxh6 {[%clk 0:01:38]}  a4 {[%clk 0:02:10]} 20. Nd4 {[%clk 0:01:35]}  a3 {[%clk 0:01:47]} 21. Nc6 {[%clk 0:00:36]}  Qc7 {[%clk 0:01:33]} 22. bxa3 {[%clk 0:00:33]}  Rxc3 {[%clk 0:01:31]} 23. Rac1 {[%clk 0:00:29]}  Rc5 {[%clk 0:01:17]} 24. Rxc5 {[%clk 0:00:26]}  dxc5 {[%clk 0:01:18]} 25. Qe3 {[%clk 0:00:26]}  c4 {[%clk 0:01:17]} 26. Nxe7+ {[%clk 0:00:25]}  Qxe7 {[%clk 0:00:52]} 27. Qxe7 {[%clk 0:00:24]}  Bxe7 {[%clk 0:00:53]} 28. Rxe7 {[%clk 0:00:24]}  Rd8 {[%clk 0:00:54]} 29. Kf1 {[%clk 0:00:12]}  Rxd5 {[%clk 0:00:53]} 30. Ke2 {[%clk 0:00:13]}  Rd3 {[%clk 0:00:53]} 31. Re3 {[%clk 0:00:12]}  Rd6 {[%clk 0:00:40]} 32. a4 {[%clk 0:00:09]}  b4 {[%clk 0:00:34]} 33. Re4 {[%clk 0:00:09]}  Rc6 {[%clk 0:00:31]} 34. Kd1 {[%clk 0:00:06]}  f5 {[%clk 0:00:28]} 35. Rd4 {[%clk 0:00:05]}  Kf7 {[%clk 0:00:27]} 36. a5 {[%clk 0:00:05]}  Ke6 {[%clk 0:00:28]} 37. f4 {[%clk 0:00:05]}  Rd6 {[%clk 0:00:25]} 38. Rxd6+ {[%clk 0:00:05]}  Kxd6 {[%clk 0:00:26]} 39. h3 {[%clk 0:00:05]}  Kc6 {[%clk 0:00:24]} 40. g4 {[%clk 0:00:06]}  fxg4 {[%clk 0:00:23]} 41. hxg4 {[%clk 0:00:05]}  Kb5 {[%clk 0:00:23]} 42. f5 {[%clk 0:00:06]}  gxf5 {[%clk 0:00:23]} 43. gxf5 {[%clk 0:00:07]}  Kxa5 {[%clk 0:00:22]} 44. f6 {[%clk 0:00:07]}  Ka4 {[%clk 0:00:23]} 45. f7 {[%clk 0:00:07]}  Ka3 {[%clk 0:00:24]} 46. f8=Q {[%clk 0:00:07]}  c3 {[%clk 0:00:23]} 47. Kc2 {[%clk 0:00:07]}  Kxa2 {[%clk 0:00:23]} 48. Qxb4 {[%clk 0:00:07]}  Ka1 {[%clk 0:00:24]} 49. Qa4# {[%clk 0:00:07]} 1-0

[Event "November 21 Early 2023"]
[Site "https://www.chess.com"]
[Date "2023.11.21"]
[Round "1"]
[White "whiteglovethief"]
[Black "AlmasRakhmatullaev"]
[Result "0-1"]
[Board "54"]
[TimeControl "180+1"]
[WhiteElo "2473"]
[BlackElo "2862"]
[WhiteClock "0:01:09"]
[BlackClock "0:01:32"]

1. d4 {[%clk 0:02:59]}  Nf6 {[%clk 0:02:53]} 2. c4 {[%clk 0:02:58]}  g6 {[%clk 0:02:53]} 3. Nc3 {[%clk 0:02:56]}  Bg7 {[%clk 0:02:53]} 4. g3 {[%clk 0:02:55]}  O-O {[%clk 0:02:52]} 5. Bg2 {[%clk 0:02:56]}  d6 {[%clk 0:02:52]} 6. h3 {[%clk 0:02:56]}  c6 {[%clk 0:02:51]} 7. e3 {[%clk 0:02:53]}  e5 {[%clk 0:02:48]} 8. Nge2 {[%clk 0:02:53]}  Be6 {[%clk 0:02:47]} 9. d5 {[%clk 0:02:49]}  cxd5 {[%clk 0:02:47]} 10. cxd5 {[%clk 0:02:50]}  Bd7 {[%clk 0:02:45]} 11. O-O {[%clk 0:02:49]}  b5 {[%clk 0:02:32]} 12. e4 {[%clk 0:02:34]}  b4 {[%clk 0:02:26]} 13. Na4 {[%clk 0:02:34]}  Qc8 {[%clk 0:02:18]} 14. Kh2 {[%clk 0:02:22]}  Qa6 {[%clk 0:02:08]} 15. b3 {[%clk 0:02:21]}  Bb5 {[%clk 0:02:07]} 16. Re1 {[%clk 0:02:21]}  Nbd7 {[%clk 0:02:07]} 17. Nb2 {[%clk 0:02:13]}  Nc5 {[%clk 0:02:04]} 18. f3 {[%clk 0:02:12]}  Nfd7 {[%clk 0:01:59]} 19. Bf1 {[%clk 0:02:07]}  f5 {[%clk 0:01:58]} 20. exf5 {[%clk 0:02:03]}  Rxf5 {[%clk 0:01:56]} 21. Ng1 {[%clk 0:01:57]}  Bxf1 {[%clk 0:01:49]} 22. Rxf1 {[%clk 0:01:58]}  Nxb3 {[%clk 0:01:43]} 23. Qxb3 {[%clk 0:01:15]}  Qxf1 {[%clk 0:01:39]} 24. Nd3 {[%clk 0:01:12]}  e4 {[%clk 0:01:32]} 25. Bb2 {[%clk 0:01:09]}  Qxd3 {[%clk 0:01:32]} 0-1

[Event "November 21 Early 2023"]
[Site "https://www.chess.com"]
[Date "2023.11.21"]
[Round "1"]
[White "Sreyas Payyappat"]
[Black "Rohith Krishna S"]
[Result "0-1"]
[Board "56"]
[TimeControl "180+1"]
[WhiteFideId "46674969"]
[BlackFideId "46617051"]
[WhiteElo "2043"]
[BlackElo "2394"]
[WhiteTeam "IND"]
[BlackTeam "IND"]
[WhiteClock "0:01:16"]
[BlackClock "0:00:47"]

1. e4 {[%clk 0:02:59]}  e6 {[%clk 0:02:58]} 2. d4 {[%clk 0:02:59]}  d5 {[%clk 0:02:59]} 3. Nc3 {[%clk 0:02:59]}  Bb4 {[%clk 0:02:57]} 4. e5 {[%clk 0:03:00]}  c5 {[%clk 0:02:50]} 5. a3 {[%clk 0:02:47]}  Bxc3+ {[%clk 0:02:50]} 6. bxc3 {[%clk 0:02:48]}  Ne7 {[%clk 0:02:49]} 7. Qf3 {[%clk 0:02:47]}  Qc7 {[%clk 0:02:46]} 8. Ne2 {[%clk 0:02:43]}  Bd7 {[%clk 0:02:37]} 9. Be3 {[%clk 0:02:37]}  Ba4 {[%clk 0:02:35]} 10. dxc5 {[%clk 0:02:34]}  Nd7 {[%clk 0:02:28]} 11. Qg4 {[%clk 0:02:29]}  Bxc2 {[%clk 0:02:28]} 12. Nd4 {[%clk 0:02:27]}  Ba4 {[%clk 0:01:43]} 13. Nxe6 {[%clk 0:01:55]}  fxe6 {[%clk 0:01:42]} 14. Qxa4 {[%clk 0:01:53]}  Qxe5 {[%clk 0:01:42]} 15. Bb5 {[%clk 0:01:45]}  Qxc3+ {[%clk 0:01:41]} 16. Ke2 {[%clk 0:01:40]}  Qb2+ {[%clk 0:01:41]} 17. Kd3 {[%clk 0:01:39]}  Rd8 {[%clk 0:01:09]} 18. Bd4 {[%clk 0:01:29]}  Nc6 {[%clk 0:00:57]} 19. Bxb2 {[%clk 0:01:27]}  Nxc5+ {[%clk 0:00:58]} 20. Kd2 {[%clk 0:01:24]}  Nxa4 {[%clk 0:00:59]} 21. Bxa4 {[%clk 0:01:25]}  O-O {[%clk 0:01:00]} 22. Bxc6 {[%clk 0:01:22]}  Rxf2+ {[%clk 0:00:58]} 23. Kc3 {[%clk 0:01:16]}  bxc6 {[%clk 0:00:58]} 24. Rhe1 {[%clk 0:01:16]}  Re8 {[%clk 0:00:49]} 25. Kb3 {[%clk 0:01:16]}  Rb8+ {[%clk 0:00:47]} 26. Ka4 {[%clk 0:01:16]} 0-1

[Event "November 21 Early 2023"]
[Site "https://www.chess.com"]
[Date "2023.11.21"]
[Round "1"]
[White "Javakhadze, Zurab"]
[Black "Ramla2020"]
[Result "1-0"]
[Board "57"]
[TimeControl "180+1"]
[WhiteFideId "13603647"]
[WhiteElo "2381"]
[BlackElo "2470"]
[WhiteTeam "GEO"]
[WhiteClock "0:00:43"]
[BlackClock "0:00:16"]

1. Nf3 {[%clk 0:03:00]}  d5 {[%clk 0:02:59]} 2. g3 {[%clk 0:02:52]}  Nf6 {[%clk 0:02:58]} 3. Bg2 {[%clk 0:02:53]}  c6 {[%clk 0:02:57]} 4. O-O {[%clk 0:02:52]}  Bf5 {[%clk 0:02:57]} 5. d3 {[%clk 0:02:49]}  e6 {[%clk 0:02:55]} 6. c4 {[%clk 0:02:47]}  Nbd7 {[%clk 0:02:55]} 7. Be3 {[%clk 0:02:46]}  Be7 {[%clk 0:02:50]} 8. Qb3 {[%clk 0:02:45]}  Qc8 {[%clk 0:02:35]} 9. Nc3 {[%clk 0:02:40]}  O-O {[%clk 0:02:31]} 10. Rac1 {[%clk 0:02:35]}  h6 {[%clk 0:02:26]} 11. cxd5 {[%clk 0:02:20]}  Nxd5 {[%clk 0:02:23]} 12. Bd2 {[%clk 0:02:09]}  Nc5 {[%clk 0:02:20]} 13. Qd1 {[%clk 0:02:05]}  Nxc3 {[%clk 0:02:18]} 14. Bxc3 {[%clk 0:02:00]}  Nd7 {[%clk 0:02:09]} 15. b4 {[%clk 0:01:55]}  Bf6 {[%clk 0:02:05]} 16. Bxf6 {[%clk 0:01:53]}  Nxf6 {[%clk 0:02:06]} 17. b5 {[%clk 0:01:52]}  Qc7 {[%clk 0:01:56]} 18. bxc6 {[%clk 0:01:51]}  bxc6 {[%clk 0:01:55]} 19. Nd4 {[%clk 0:01:52]}  Qb6 {[%clk 0:01:32]} 20. Nxf5 {[%clk 0:01:44]}  exf5 {[%clk 0:01:33]} 21. Rxc6 {[%clk 0:01:44]}  Qa5 {[%clk 0:01:31]} 22. Rxf6 {[%clk 0:01:37]}  gxf6 {[%clk 0:01:28]} 23. Bxa8 {[%clk 0:01:37]}  Rxa8 {[%clk 0:01:29]} 24. Qc2 {[%clk 0:01:25]}  Rb8 {[%clk 0:01:27]} 25. e3 {[%clk 0:01:24]}  Qa3 {[%clk 0:01:25]} 26. d4 {[%clk 0:01:23]}  Kg7 {[%clk 0:01:19]} 27. d5 {[%clk 0:01:11]}  Rb2 {[%clk 0:01:17]} 28. Qxf5 {[%clk 0:01:10]}  Rd2 {[%clk 0:01:15]} 29. Rb1 {[%clk 0:00:54]}  Qxa2 {[%clk 0:01:08]} 30. Qg4+ {[%clk 0:00:49]}  Kf8 {[%clk 0:00:26]} 31. Rb8+ {[%clk 0:00:45]}  Ke7 {[%clk 0:00:16]} 32. Qb4+ {[%clk 0:00:43]} 1-0

[Event "November 21 Early 2023"]
[Site "https://www.chess.com"]
[Date "2023.11.21"]
[Round "1"]
[White "Manukyan, Sargis V."]
[Black "Eljanov, Pavel"]
[Result "0-1"]
[Board "58"]
[TimeControl "180+1"]
[WhiteFideId "13303465"]
[BlackFideId "14102951"]
[WhiteElo "2236"]
[BlackElo "2598"]
[WhiteTeam "ARM"]
[BlackTeam "UKR"]
[WhiteClock "0:00:09"]
[BlackClock "0:00:33"]

1. d4 {[%clk 0:02:52]}  d5 {[%clk 0:02:59]} 2. c4 {[%clk 0:02:51]}  e6 {[%clk 0:02:59]} 3. Nc3 {[%clk 0:02:50]}  Nf6 {[%clk 0:03:00]} 4. cxd5 {[%clk 0:02:49]}  exd5 {[%clk 0:03:01]} 5. Bg5 {[%clk 0:02:48]}  Be7 {[%clk 0:03:00]} 6. e3 {[%clk 0:02:48]}  h6 {[%clk 0:03:00]} 7. Bh4 {[%clk 0:02:48]}  Bg4 {[%clk 0:02:59]} 8. Qc2 {[%clk 0:02:38]}  O-O {[%clk 0:02:56]} 9. Bd3 {[%clk 0:02:36]}  c5 {[%clk 0:02:51]} 10. dxc5 {[%clk 0:02:18]}  d4 {[%clk 0:02:51]} 11. exd4 {[%clk 0:01:53]}  Qxd4 {[%clk 0:02:51]} 12. f3 {[%clk 0:01:47]}  Bf5 {[%clk 0:01:58]} 13. Bxf6 {[%clk 0:01:23]}  Bxd3 {[%clk 0:01:57]} 14. Bxd4 {[%clk 0:01:22]}  Bxc2 {[%clk 0:01:58]} 15. Nge2 {[%clk 0:01:17]}  Nc6 {[%clk 0:01:58]} 16. Be3 {[%clk 0:01:13]}  Rfe8 {[%clk 0:01:50]} 17. Nd5 {[%clk 0:00:54]}  Bh4+ {[%clk 0:01:39]} 18. g3 {[%clk 0:00:42]}  Rad8 {[%clk 0:01:36]} 19. Nec3 {[%clk 0:00:33]}  Bg5 {[%clk 0:01:21]} 20. f4 {[%clk 0:00:32]}  Be4 {[%clk 0:01:14]} 21. Nxe4 {[%clk 0:00:24]}  Rxd5 {[%clk 0:01:14]} 22. Nxg5 {[%clk 0:00:14]}  Rxe3+ {[%clk 0:01:10]} 23. Kf2 {[%clk 0:00:14]}  Rdd3 {[%clk 0:00:54]} 24. Nh3 {[%clk 0:00:08]}  Nd4 {[%clk 0:00:39]} 25. Rhe1 {[%clk 0:00:07]}  Rf3+ {[%clk 0:00:35]} 26. Kg1 {[%clk 0:00:08]}  Rd2 {[%clk 0:00:34]} 27. Rad1 {[%clk 0:00:07]}  Rfd3 {[%clk 0:00:34]} 28. Rxd2 {[%clk 0:00:08]}  Rxd2 {[%clk 0:00:34]} 29. b4 {[%clk 0:00:08]}  Nf3+ {[%clk 0:00:34]} 30. Kf1 {[%clk 0:00:08]}  Nxh2+ {[%clk 0:00:33]} 31. Kg1 {[%clk 0:00:07]}  Nf3+ {[%clk 0:00:34]} 32. Kf1 {[%clk 0:00:08]}  Nxe1 {[%clk 0:00:34]} 33. Kg1 {[%clk 0:00:09]}  Nf3+ {[%clk 0:00:33]} 0-1

[Event "November 21 Early 2023"]
[Site "https://www.chess.com"]
[Date "2023.11.21"]
[Round "1"]
[White "BardArtem"]
[Black "Pourkashiyan, Atousa"]
[Result "1-0"]
[Board "59"]
[TimeControl "180+1"]
[BlackFideId "12502014"]
[WhiteElo "2851"]
[BlackElo "2221"]
[BlackTeam "USA"]
[WhiteClock "0:00:12"]
[BlackClock "0:00:14"]

1. e4 {[%clk 0:03:00]}  e5 {[%clk 0:02:57]} 2. d4 {[%clk 0:02:56]}  exd4 {[%clk 0:02:57]} 3. Qxd4 {[%clk 0:02:57]}  Nc6 {[%clk 0:02:57]} 4. Qd3 {[%clk 0:02:57]}  Nf6 {[%clk 0:02:56]} 5. Nc3 {[%clk 0:02:57]}  Bb4 {[%clk 0:02:56]} 6. Bd2 {[%clk 0:02:57]}  O-O {[%clk 0:02:54]} 7. Nge2 {[%clk 0:02:52]}  Re8 {[%clk 0:02:53]} 8. O-O-O {[%clk 0:02:51]}  Ne5 {[%clk 0:02:51]} 9. Qg3 {[%clk 0:02:51]}  d6 {[%clk 0:02:45]} 10. Bg5 {[%clk 0:02:45]}  Ng6 {[%clk 0:02:26]} 11. Nd5 {[%clk 0:02:31]}  Bc5 {[%clk 0:02:16]} 12. Bxf6 {[%clk 0:02:19]}  gxf6 {[%clk 0:02:17]} 13. h4 {[%clk 0:02:19]}  Kh8 {[%clk 0:02:11]} 14. h5 {[%clk 0:02:17]}  Ne5 {[%clk 0:02:11]} 15. Qf4 {[%clk 0:02:02]}  Ng4 {[%clk 0:02:07]} 16. f3 {[%clk 0:01:34]}  c6 {[%clk 0:02:07]} 17. fxg4 {[%clk 0:00:59]}  cxd5 {[%clk 0:02:06]} 18. Rxd5 {[%clk 0:01:00]}  Be6 {[%clk 0:02:03]} 19. Nc3 {[%clk 0:00:51]}  Bb4 {[%clk 0:01:56]} 20. Rd3 {[%clk 0:00:40]}  Rg8 {[%clk 0:01:44]} 21. Be2 {[%clk 0:00:38]}  Bxc3 {[%clk 0:01:43]} 22. Rxc3 {[%clk 0:00:39]}  Rc8 {[%clk 0:01:43]} 23. Rxc8 {[%clk 0:00:36]}  Bxc8 {[%clk 0:01:43]} 24. Rd1 {[%clk 0:00:36]}  Be6 {[%clk 0:01:26]} 25. Rxd6 {[%clk 0:00:31]}  Qe7 {[%clk 0:01:26]} 26. e5 {[%clk 0:00:32]}  Rc8 {[%clk 0:00:52]} 27. Qxf6+ {[%clk 0:00:29]}  Qxf6 {[%clk 0:00:50]} 28. exf6 {[%clk 0:00:30]}  h6 {[%clk 0:00:48]} 29. Kd2 {[%clk 0:00:27]}  a6 {[%clk 0:00:44]} 30. b3 {[%clk 0:00:25]}  Rg8 {[%clk 0:00:42]} 31. Kc3 {[%clk 0:00:19]}  Bxg4 {[%clk 0:00:38]} 32. Bxg4 {[%clk 0:00:20]}  Rxg4 {[%clk 0:00:38]} 33. Rd8+ {[%clk 0:00:21]}  Kh7 {[%clk 0:00:38]} 34. Rf8 {[%clk 0:00:21]}  Rxg2 {[%clk 0:00:34]} 35. Rxf7+ {[%clk 0:00:21]}  Kg8 {[%clk 0:00:35]} 36. Rxb7 {[%clk 0:00:21]}  Rf2 {[%clk 0:00:35]} 37. Rb6 {[%clk 0:00:19]}  a5 {[%clk 0:00:33]} 38. Ra6 {[%clk 0:00:18]}  Kf7 {[%clk 0:00:33]} 39. Rxa5 {[%clk 0:00:18]}  Kxf6 {[%clk 0:00:33]} 40. b4 {[%clk 0:00:18]}  Rh2 {[%clk 0:00:32]} 41. a4 {[%clk 0:00:17]}  Rh3+ {[%clk 0:00:32]} 42. Kb2 {[%clk 0:00:17]}  Rh4 {[%clk 0:00:32]} 43. Kb3 {[%clk 0:00:17]}  Rh3+ {[%clk 0:00:32]} 44. c3 {[%clk 0:00:18]}  Rg3 {[%clk 0:00:31]} 45. Rc5 {[%clk 0:00:18]}  Rg5 {[%clk 0:00:31]} 46. a5 {[%clk 0:00:15]}  Ke6 {[%clk 0:00:21]} 47. a6 {[%clk 0:00:12]}  Rg7 {[%clk 0:00:16]} 48. Ra5 {[%clk 0:00:11]}  Ra7 {[%clk 0:00:16]} 49. b5 {[%clk 0:00:12]}  Kd6 {[%clk 0:00:14]} 50. b6 {[%clk 0:00:12]} 1-0